bitfinex/quotes_ETHUSD_20241123
["timestamp","ask_amount","ask_price","bid_price","bid_amount"]
[1732334818040,0.80791367,3328.6,3328.0,0.07777486]
[1732334818273,0.80791367,3328.6,3328.2,0.07775917]
[1732334818480,0.80791367,3328.6,3328.1,0.07776701]
[1732334818779,0.80791367,3328.6,3327.9,0.00907868]
[1732334818975,0.80791367,3328.6,3328.2,0.07775917]
[1732334819178,0.80791367,3328.6,3327.9,0.00907868]
[1732334819378,0.80791367,3328.6,3328.3,0.07775132]
[1732334819568,0.80791367,3328.6,3328.0,0.7813]
[1732334819768,0.80791367,3328.6,3328.4,0.07774348]
[1732334819972,0.80791367,3328.6,3328.0,0.80389936]
[1732334820142,0.80791367,3328.6,3328.5,0.07777029]
[1732334820349,0.80791367,3328.6,3328.0,0.80389877]
[1732334820544,0.80791367,3328.6,3328.5,0.07777029]
[1732334820857,0.80791367,3328.6,3328.0,0.7813]
[1732334821065,0.80791367,3328.6,3328.5,0.07777029]
[1732334821549,0.80791367,3328.6,3328.0,0.7813]
[1732334821745,0.80791367,3328.6,3328.5,0.07777029]
[1732334821942,0.80791367,3328.6,3328.0,0.7813]
[1732334822142,0.80791367,3328.6,3327.9,0.00907868]
[1732334823881,0.80791367,3328.6,3328.0,0.07777704]
[1732334824782,0.03011367,3328.6,3328.1,0.02260054]
[1732334824991,0.03011367,3328.6,3328.2,0.85908735]
[1732334825284,0.03011367,3328.6,3328.3,0.02258907]
[1732334825585,0.03011367,3328.6,3328.4,0.0776962]
[1732334825891,0.03011367,3328.6,3328.5,0.02258892]
[1732334826180,0.03011367,3328.6,3328.5,0.10027989]
[1732334827148,0.7778,3329.9,3328.6,0.7813]
[1732334827461,0.27962941,3329.8,3328.7,0.10018209]
[1732334827789,0.7778,3329.9,3328.9,0.7813]
[1732334827957,0.7778,3329.9,3329.0,0.43019549]
[1732334828143,0.7778,3329.9,3329.0,0.50786501]
[1732334828579,0.7778,3330.7,3329.2,0.7813]
[1732334828784,0.7778,3330.7,3329.1,0.16398182]
[1732334828785,0.27941494,3330.6,3329.4,0.7813]
[1732334828992,0.03011367,3330.6,3329.6,0.7813]
[1732334829172,0.03011367,3330.6,3329.7,0.50757307]
[1732334829377,0.03011367,3330.6,3329.8,0.7813]
[1732334829686,0.03011367,3330.6,3329.9,0.50749348]
[1732334829868,0.7778,3331.8,3331.1,8.81988633]
[1732334830076,0.7778,3331.8,3331.2,0.0225278]
[1732334830252,0.7778,3333.0,3331.2,0.09972433]
[1732334830447,0.7778,3332.8,3331.2,0.09972433]
[1732334830687,0.7778,3332.6,3331.2,0.0225278]
[1732334830989,0.31603228,3332.5,3331.3,0.0771887]
[1732334831179,0.7778,3332.3,3331.3,0.0771887]
[1732334831489,0.01,3332.9,3330.8,0.02252524]
[1732334831490,0.7778,3332.1,3330.8,0.02252524]
[1732334831688,0.27851768,3332.0,3331.4,0.07718088]
[1732334831894,0.27851768,3332.0,3330.8,0.02252524]
[1732334832049,0.30863135,3332.0,3330.4,0.48182833]
[1732334832250,0.03011367,3332.0,3330.9,0.07722001]
[1732334832603,0.03011367,3332.0,3331.0,0.07719899]
[1732334832749,0.03011367,3332.0,3330.4,0.48182833]
[1732334832945,0.7778,3331.9,3330.5,0.07723153]
[1732334833193,0.7778,3331.9,3330.6,0.02253589]
[1732334833352,0.7778,3331.9,3330.7,0.07720399]
[1732334833556,0.7778,3331.9,3330.8,0.02253591]
[1732334833747,0.7778,3331.9,3330.9,0.07718174]
[1732334833951,0.03751996,3331.8,3330.9,0.07718174]
[1732334834147,0.03751996,3331.8,3330.5,0.02253594]
[1732334834353,0.06763363,3331.8,3330.6,0.07720522]
[1732334834880,0.03011367,3331.8,3330.7,0.02253954]
[1732334835260,0.7503,3331.7,3330.8,0.07718956]
[1732334835468,0.0375218,3331.6,3330.8,0.07718956]
[1732334835650,0.06763547,3331.6,3330.4,0.02253958]
[1732334835854,0.06763547,3331.6,3330.9,0.07718174]
[1732334836065,0.06763547,3331.6,3330.4,0.02253958]
[1732334836578,0.03011367,3331.6,3330.5,0.07721305]
[1732334836794,0.03011367,3331.6,3330.6,0.02253964]
[1732334837092,0.03011367,3331.6,3330.7,0.07705278]
[1732334837700,0.03011367,3331.6,3330.7,0.09959251]
[1732334838793,0.03011367,3331.6,3330.7,0.07705278]
[1732334839087,0.03011367,3331.6,3330.8,0.02253885]
[1732334839292,0.03011367,3331.6,3330.8,0.09927525]
[1732334839491,0.03011367,3331.6,3330.8,0.55856775]
[1732334839862,0.03011367,3331.6,3330.9,0.8321]
[1732334840063,0.03011367,3331.6,3331.0,0.02252633]
[1732334840294,0.03011367,3331.6,3331.0,0.09924831]
[1732334841781,0.03011367,3331.6,3331.0,0.55854081]
[1732334842090,0.03011367,3331.6,3331.0,0.86044831]
[1732334843899,0.03011367,3331.6,3331.0,1.26676581]
[1732334844081,0.03011367,3331.6,3331.1,0.4063175]
[1732334844285,0.03011367,3331.6,3331.2,0.02251775]
[1732334844522,0.03011367,3331.6,3331.2,0.0939684]
[1732334844685,0.03011367,3331.6,3331.3,0.7612]
[1732334844879,0.03011367,3331.6,3331.4,0.02251398]
[1732334845083,0.03011367,3331.6,3331.4,0.09393057]
[1732334845806,0.03011367,3331.6,3331.5,1.1675175]
[1732334845992,0.03011367,3331.6,3331.5,1.87780046]
[1732334846198,0.03011367,3331.6,3331.5,2.29054655]
[1732334846402,0.792,3333.1,3331.7,0.7612]
[1732334846567,0.792,3333.1,3331.8,0.50013748]
[1732334847182,0.792,3333.1,3331.8,0.09381998]
[1732334848002,0.792,3332.9,3331.8,0.07132025]
[1732334848182,0.792,3332.7,3331.8,0.07132025]
[1732334848378,0.82211367,3332.7,3331.9,0.02251995]
[1732334849618,0.82211367,3332.7,3331.4,0.02251285]
[1732334849923,0.82211367,3332.7,3331.5,0.07138847]
[1732334850099,0.82211367,3332.7,3331.6,0.02251027]
[1732334850478,0.82211367,3332.7,3331.7,0.0713495]
[1732334850675,0.82211367,3332.7,3331.8,0.02251025]
[1732334850981,0.82211367,3332.7,3331.8,0.09385193]
[1732334852975,0.82211367,3332.7,3331.8,0.07134168]
[1732334853182,0.55,3332.6,3331.8,0.07134168]
[1732334853520,0.82211367,3332.7,3331.4,0.02251034]
[1732334853892,0.82211367,3332.7,3331.5,0.07136638]
[1732334854101,0.82211367,3332.7,3331.6,0.02251177]
[1732334854477,0.82211367,3332.7,3331.7,0.07136119]
[1732334854692,0.792,3332.5,3331.7,0.07136119]
[1732334854900,1.342,3332.3,3331.7,0.07136119]
[1732334855088,0.55,3332.1,3331.0,0.02253024]
[1732334855292,0.792,3331.9,3331.8,0.0688652]
[1732334855509,0.82211367,3331.9,3330.8,0.02253132]
[1732334855822,0.82211367,3331.9,3330.9,0.06893564]
[1732334855977,0.82211367,3331.9,3331.0,0.02253249]
[1732334856380,0.82211367,3331.9,3331.1,0.06890952]
[1732334857278,0.03751828,3331.8,3331.1,0.06890952]
[1732334857526,0.55,3331.8,3330.8,0.0225382]
[1732334858190,0.82211367,3331.9,3330.8,0.0225382]
[1732334858913,0.82211367,3331.9,3330.9,0.06670144]
[1732334859115,0.82211367,3331.9,3331.0,0.0225339]
[1732334859421,0.82211367,3331.9,3331.0,0.08922751]
[1732334860395,0.82211367,3331.9,3331.0,0.06669361]
[1732334860785,0.82211367,3331.9,3330.8,0.02253273]
[1732334861025,0.82211367,3331.9,3330.9,0.06671191]
[1732334861192,0.82211367,3331.9,3331.0,0.02253284]
[1732334861525,0.82211367,3331.9,3331.1,0.06669625]
[1732334861727,0.82211367,3331.9,3330.9,0.02253284]
[1732334861885,0.82211367,3331.9,3331.2,0.06667796]
[1732334862297,0.82211367,3331.9,3330.9,0.02253284]
[1732334862619,0.82211367,3331.9,3331.3,0.06668059]
[1732334862830,0.82211367,3331.9,3330.9,0.02253284]
[1732334863025,0.82211367,3331.9,3331.4,0.0666623]
[1732334863190,0.82211367,3331.9,3330.9,0.02253284]
[1732334863599,0.82211367,3331.9,3330.7,0.78373302]
[1732334863809,0.82211367,3331.9,3330.9,0.02253302]
[1732334864134,0.82211367,3331.9,3331.0,0.06669361]
[1732334864290,0.82211367,3331.9,3330.8,0.02253305]
[1732334864639,0.82211367,3331.9,3331.1,0.06668578]
[1732334864931,0.82211367,3331.9,3329.9,0.4063175]
[1732334865134,0.82211367,3331.9,3331.2,0.06445422]
[1732334865292,0.82211367,3331.9,3330.0,0.34138151]
[1732334865495,0.82211367,3331.9,3330.1,0.9563175]
[1732334865695,0.82211367,3331.9,3330.1,1.02085787]
[1732334866827,0.82211367,3331.9,3330.1,0.81223938]
[1732334867804,0.82211367,3331.9,3330.3,0.7816]
[1732334868135,0.82211367,3331.9,3330.4,0.06451859]
[1732334868293,0.82211367,3331.9,3330.5,0.7816]
[1732334868499,0.82211367,3331.9,3330.5,0.8461029]
[1732334869207,0.81303499,3331.9,3330.5,0.8461029]
[1732334869722,0.81303499,3331.9,3330.6,0.7816]
[1732334870027,0.81303499,3331.9,3330.7,0.16277029]
[1732334870251,0.81303499,3331.9,3330.7,0.22725753]
[1732334870535,0.81303499,3331.9,3330.7,0.06448724]
[1732334873411,0.7503,3331.7,3330.3,0.7816]
[1732334873606,0.7503,3331.7,3330.4,0.06449753]
[1732334873823,0.78041367,3331.7,3330.4,0.06449753]
[1732334874643,0.78041367,3331.7,3330.3,0.7816]
[1732334874852,0.78041367,3331.7,3330.5,0.06457773]
[1732334875018,0.78041367,3331.7,3330.6,0.8461699]
[1732334876720,0.03011367,3331.7,3330.7,0.34138151]
[1732334876907,0.03011367,3331.7,3330.8,0.7709]
[1732334877103,0.03011367,3331.7,3331.0,0.7709]
[1732334877308,0.03011367,3331.7,3331.0,1.1772175]
[1732334877509,0.03011367,3331.7,3331.1,0.47081664]
[1732334879362,0.03011367,3331.7,3331.2,0.7709]
[1732334879554,0.03011367,3331.7,3331.2,1.58310624]
[1732334879732,0.03011367,3331.7,3331.3,0.56462812]
[1732334879926,0.03011367,3331.7,3331.4,0.7709]
[1732334880246,0.8305,3332.4,3332.3,8.81988633]
[1732334880440,0.8305,3332.4,3331.4,1.24152868]
[1732334880646,0.8305,3332.4,3331.4,1.1772175]
[1732334881178,0.8305,3332.4,3331.5,0.06428743]
[1732334881543,0.86061367,3332.4,3331.5,0.06428743]
[1732334888200,0.86061367,3332.4,3331.5,0.47060493]
[1732334888405,0.03011367,3332.4,3331.6,0.8186]
[1732334888761,0.03011367,3332.4,3331.7,0.06424479]
[1732334889456,0.03011367,3332.4,3331.7,0.47056229]
[1732334889996,0.03011367,3332.4,3331.8,0.4063175]
[1732334890194,0.03011367,3332.4,3331.9,0.8186]
[1732334890515,0.03011367,3332.4,3332.1,0.8186]
[1732334890672,0.7634,3333.2,3333.0,8.81988633]
[1732334890878,0.7634,3333.2,3333.1,0.06401713]
[1732334891288,0.7634,3333.2,3332.7,0.8186]
[1732334891490,0.7634,3333.2,3332.8,0.06403947]
[1732334891668,0.7634,3333.5,3332.7,1.2249175]
[1732334891869,0.7634,3333.5,3332.8,0.06400759]
[1732334892302,0.7634,3333.5,3332.8,0.47032509]
[1732334892705,0.79351367,3333.5,3332.8,0.47032509]
[1732334893489,0.79351367,3333.5,3332.8,0.06400759]
[1732334894008,0.03011367,3333.5,3332.8,0.47032509]
[1732334894174,0.03011367,3333.5,3332.9,0.4063175]
[1732334894622,0.03011367,3333.5,3333.0,0.06397479]
[1732334894922,0.7634,3333.4,3332.4,0.8186]
[1732334895073,0.7634,3333.4,3333.1,0.06395839]
[1732334895275,0.7634,3333.4,3332.4,0.8186]
[1732334895473,0.7634,3333.4,3332.5,0.06400531]
[1732334896688,0.7634,3333.4,3332.6,0.4063175]
[1732334896912,0.7634,3333.4,3332.7,0.06398967]
[1732334897097,0.7634,3333.4,3332.7,0.47030717]
[1732334898986,0.7634,3333.4,3332.7,0.06398967]
[1732334899412,0.7634,3333.4,3332.0,0.8309]
[1732334899715,0.7634,3333.4,3332.0,1.2372175]
[1732334899877,0.7634,3333.4,3332.1,0.47022855]
[1732334900072,0.7634,3333.4,3332.2,0.17074461]
[1732334900314,0.7634,3333.4,3332.3,0.0638954]
[1732334901029,0.7634,3333.4,3332.3,0.4702129]
[1732334901226,0.7634,3333.4,3332.4,0.4063175]
[1732334901534,0.7634,3333.4,3332.5,0.06387976]
[1732334901707,0.7634,3333.4,3332.6,0.8309]
[1732334901889,0.7634,3333.4,3332.7,0.06390457]
[1732334902888,0.7634,3333.4,3332.7,0.47022207]
[1732334903685,0.7634,3333.4,3332.7,0.06390457]
[1732334903889,0.7634,3333.4,3332.8,0.4063175]
[1732334904122,0.7634,3333.4,3332.9,0.06388893]
[1732334904427,0.03011367,3333.5,3332.9,0.47020643]
[1732334904677,0.03011367,3333.5,3332.9,0.06388893]
[1732334904930,0.03011367,3333.5,3332.6,0.8309]
[1732334905093,0.03011367,3333.5,3333.0,0.06388112]
[1732334905292,0.03011367,3333.5,3332.7,0.4063175]
[1732334905512,0.03011367,3333.5,3332.8,0.06389675]
[1732334907138,0.03011367,3333.5,3332.9,0.06388893]
[1732334907493,0.03011367,3333.5,3332.6,0.8309]
[1732334907819,0.03011367,3333.5,3332.7,0.06390457]
[1732334908603,0.03011367,3333.5,3332.7,0.47022207]
[1732334908845,0.03011367,3333.5,3332.8,0.4063175]
[1732334909153,0.03011367,3333.5,3332.9,0.06388893]
[1732334909315,0.03011367,3333.5,3332.9,0.47020643]
[1732334909959,0.03011367,3333.5,3333.0,0.4063175]
[1732334910319,0.03011367,3333.5,3333.1,0.0638049]
[1732334910650,0.03011367,3333.5,3333.1,0.4701224]
[1732334911513,0.03011367,3333.5,3333.2,0.4063175]
[1732334911721,0.03011367,3333.5,3333.3,0.06378926]
[1732334911921,0.03011367,3333.5,3333.2,0.4063175]
[1732334912183,0.03011367,3333.5,3333.3,0.06378926]
[1732334912515,0.03011367,3333.5,3333.2,0.4063175]
[1732334912852,0.03011367,3333.5,3333.3,0.06378926]
[1732334913020,0.03011367,3333.5,3333.4,0.4063175]
[1732334913404,0.03011367,3333.5,3333.4,0.47002541]
[1732334914711,0.03011367,3333.5,3333.4,0.06370791]
[1732334915124,0.03011367,3333.5,3333.2,0.8309]
[1732334915429,0.03011367,3333.5,3333.3,0.06367379]
[1732334915982,0.03011367,3333.5,3333.4,0.06366598]
[1732334916675,0.03011367,3333.5,3333.2,0.8309]
[1732334916983,0.03011367,3333.5,3333.3,0.06367379]
[1732334917588,0.03011367,3333.5,3333.4,0.06364514]
[1732334917954,0.03011367,3333.5,3332.9,0.7967]
[1732334918154,0.03011367,3333.5,3333.4,0.06364514]
[1732334918466,0.7649,3333.4,3332.5,1.2030175]
[1732334918671,0.7649,3333.4,3332.6,0.34063175]
[1732334918874,0.7649,3333.4,3332.2,1.2030175]
[1732334919373,0.7649,3333.4,3332.2,0.4063175]
[1732334919902,0.27940528,3333.3,3332.2,0.4063175]
[1732334920103,0.7649,3333.2,3332.2,0.4063175]
[1732334920455,0.79501367,3333.2,3332.2,0.4063175]
[1732334922313,0.79501367,3333.2,3332.3,0.7467]
[1732334922612,0.79501367,3333.2,3332.3,1.1530175]
[1732334924822,0.79501367,3333.2,3332.3,0.7467]
[1732334925979,0.79501367,3333.2,3332.4,0.06172113]
[1732334928820,0.79501367,3333.2,3332.0,0.7967]
[1732334929013,0.79501367,3333.2,3332.5,0.06174416]
[1732334929312,0.79501367,3333.2,3332.0,0.7967]
[1732334929684,0.79501367,3333.2,3332.1,0.05963777]
[1732334932110,0.79501367,3333.2,3331.6,1.2030175]
[1732334932310,0.79501367,3333.2,3331.7,0.059669]
[1732334933082,0.79501367,3333.2,3331.7,0.4659865]
[1732334935927,0.02,3333.0,3331.8,0.4063175]
[1732334936091,0.8263,3332.9,3331.9,0.05770098]
[1732334936288,0.85641367,3332.9,3331.0,0.795013]
[1732334936494,0.85641367,3332.9,3331.4,0.37245771]
[1732334936802,0.85641367,3332.9,3331.5,0.05773228]
[1732334937123,0.85641367,3332.9,3331.5,0.43018999]
[1732334937629,0.85641367,3332.9,3331.6,0.92245771]
[1732334938006,0.85641367,3332.9,3331.7,0.05773005]
[1732334938797,0.85641367,3332.9,3331.8,0.37245771]
[1732334938997,0.85641367,3332.9,3331.9,0.8282]
[1732334939220,0.85641367,3332.9,3332.0,0.55]
[1732334939420,0.85641367,3332.9,3332.1,0.18083868]
[1732334939621,0.85641367,3332.9,3332.1,0.23855209]
[1732334940531,0.03011367,3332.9,3332.2,0.8282]
[1732334940705,0.03011367,3332.9,3332.3,0.05767825]
[1732334942527,0.8123,3332.8,3332.3,0.05767825]
[1732334942733,0.8123,3332.8,3332.2,0.8282]
[1732334942942,0.03011367,3332.9,3332.3,0.05767825]
[1732334950019,0.8123,3333.9,3332.4,0.55]
[1732334950339,0.8123,3333.9,3332.5,0.87457447]
[1732334950634,0.8123,3333.9,3332.6,0.55]
[1732334950941,0.8123,3333.9,3332.7,0.87455883]
[1732334951314,0.8123,3333.9,3332.8,0.55]
[1732334951642,0.8123,3333.9,3332.9,0.05750417]
[1732334952403,0.84241367,3333.9,3332.9,0.05750417]
[1732334953332,0.8123,3333.7,3332.9,0.05750417]
[1732334953539,0.84241367,3333.7,3332.2,0.817]
[1732334953714,0.84241367,3333.7,3332.3,0.60754011]
[1732334955132,0.84241367,3333.7,3332.3,0.97999782]
[1732334955343,0.84241367,3333.7,3332.4,1.51135473]
[1732334955509,0.84241367,3333.7,3332.5,0.30663466]
[1732334956051,0.84241367,3333.7,3332.6,1.17945771]
[1732334956217,0.84241367,3333.7,3332.7,0.55]
[1732334956422,0.84241367,3333.7,3332.8,0.807]
[1732334956607,0.03011367,3333.7,3332.8,0.807]
[1732334956806,0.03011367,3333.7,3332.9,0.05746813]
[1732334957407,0.03011367,3333.7,3333.0,0.807]
[1732334957848,0.03011367,3333.7,3333.1,0.0574525]
[1732334960749,0.03011367,3333.7,3333.2,0.55]
[1732334960944,0.03011367,3333.7,3333.3,0.05729475]
[1732334961158,0.03011367,3333.7,3333.1,0.55]
[1732334961360,0.03011367,3333.7,3333.2,0.05730256]
[1732334964636,0.03011367,3333.7,3333.0,0.807]
[1732334965268,0.03011367,3333.7,3333.1,0.05729455]
[1732334971065,0.7985,3333.6,3333.1,0.05729455]
[1732334971426,0.7985,3333.6,3332.7,0.807]
[1732334971649,0.7985,3333.6,3333.2,0.05728308]
[1732334971870,0.7985,3333.6,3332.7,0.807]
[1732334972077,0.7985,3333.6,3333.3,0.05727526]
[1732334972234,0.7985,3333.6,3332.0,0.807]
[1732334972435,0.7985,3333.6,3333.4,0.05728552]
[1732334972635,0.7985,3333.6,3332.0,0.807]
[1732334973059,0.7985,3333.6,3332.2,0.807]
[1732334973267,0.7985,3333.6,3332.3,0.55]
[1732334973434,0.7985,3333.6,3332.3,0.60736885]
[1732334974144,0.95807709,3333.6,3332.3,0.60736885]
[1732334974473,0.03011367,3333.7,3332.5,1.357]
[1732334974684,0.03011367,3333.7,3332.7,0.55]
[1732334974863,0.7985,3333.6,3332.7,0.55]
[1732334975067,0.7985,3333.6,3332.8,0.05496499]
[1732334976758,0.03011367,3333.7,3332.8,0.05496499]
[1732334977991,0.03011367,3333.7,3332.7,0.807]
[1732334978494,0.03011367,3333.7,3332.9,0.00644458]
[1732334978702,0.02261367,3333.7,3333.1,0.00644458]
[1732334978992,0.02261367,3333.7,3333.3,0.00644458]
[1732334979460,0.02261367,3333.7,3333.5,0.00644458]
[1732334979877,0.02261367,3333.7,3333.6,0.06133869]
[1732334982206,0.82201367,3333.7,3333.6,0.06133869]
[1732334982784,0.82201367,3333.7,3333.6,0.00644458]
[1732334983999,1.56903677,3333.7,3333.6,0.00644458]
[1732334984202,0.01,3333.6,3332.6,0.8261]
[1732334984558,0.01,3333.6,3332.7,0.05497316]
[1732334984989,0.7994,3333.5,3332.7,0.05497316]
[1732334985778,0.7994,3333.5,3332.4,0.8261]
[1732334985989,0.7994,3333.5,3332.8,0.05496534]
[1732334986157,0.95604231,3333.5,3332.4,0.8261]
[1732334986357,0.7994,3333.5,3332.5,0.0549888]
[1732334987167,0.8094,3333.4,3332.5,0.0549888]
[1732334987414,0.8326,3333.4,3332.1,0.8261]
[1732334987775,0.8326,3333.4,3332.2,0.05504867]
[1732334989164,0.01,3333.0,3332.2,0.05504867]
[1732334989387,0.8094,3332.8,3331.7,0.8261]
[1732334989590,0.7994,3332.8,3331.7,0.8261]
[1732334989795,0.8226,3332.8,3331.9,0.8261]
[1732334990201,0.8226,3332.8,3332.0,0.05331871]
[1732334990569,0.0232,3332.8,3332.1,0.8261]
[1732334990917,0.0232,3332.8,3331.5,0.33161991]
[1732334990918,0.0232,3332.8,3332.3,0.8261]
[1732334991282,0.0232,3332.8,3332.4,0.05329896]
[1732334992413,0.0232,3332.8,3332.5,0.05329114]
[1732334992821,0.0232,3332.8,3332.3,0.58049896]
[1732334992974,0.0232,3332.8,3332.6,0.05147647]
[1732334993175,0.0232,3332.8,3332.3,0.58049896]
[1732334993424,0.0232,3332.8,3332.7,0.05146865]
[1732334993717,0.0232,3332.8,3332.3,0.58049896]
[1732334993912,0.0232,3332.8,3332.7,0.05146865]
[1732334994085,0.0232,3332.8,3332.3,0.58049896]
[1732334994622,0.0232,3332.8,3332.4,0.05149211]
[1732334998377,0.01,3333.8,3332.5,0.7635]
[1732334998899,0.7644,3334.0,3332.7,0.7635]
[1732334999237,0.01,3333.8,3332.8,0.05144999]
[1732335000403,0.7644,3334.0,3332.9,0.7635]
[1732335000709,0.0296,3333.8,3332.9,0.7635]
[1732335000909,0.0296,3334.0,3333.1,0.7635]
[1732335001240,0.0296,3334.0,3333.3,0.7635]
[1732335001740,0.0296,3334.0,3333.4,0.05128884]
[1732335003909,0.7644,3333.9,3333.4,0.05128884]
[1732335006017,0.01,3333.8,3332.7,0.7635]
[1732335006219,0.01,3333.8,3333.5,0.05120734]
[1732335006554,0.01,3333.8,3332.7,0.7635]
[1732335006759,0.0396,3333.8,3332.7,0.7635]
[1732335006904,0.0396,3333.8,3332.8,0.05130553]
[1732335007107,0.7644,3333.7,3332.8,0.05130553]
[1732335007419,0.7644,3333.7,3332.7,0.7635]
[1732335007420,0.91859973,3333.7,3332.7,0.7635]
[1732335007613,0.7644,3333.7,3332.7,0.7635]
[1732335007834,0.7644,3333.7,3332.8,0.05130553]
[1732335008241,0.7644,3333.7,3332.7,0.7635]
[1732335008742,0.7644,3333.7,3332.8,0.05130553]
[1732335009146,0.7644,3333.7,3332.7,0.7635]
[1732335009521,0.7644,3333.7,3332.8,0.05130553]
[1732335009822,0.7644,3333.7,3332.7,0.7635]
[1732335010229,0.7644,3333.7,3332.8,0.05130553]
[1732335010752,0.91859973,3333.7,3332.7,0.7635]
[1732335010908,0.01,3333.3,3332.7,0.7635]
[1732335011246,0.7644,3333.2,3332.5,0.7635]
[1732335011617,0.7644,3333.2,3332.6,0.05134897]
[1732335012322,0.01,3333.1,3332.2,0.7635]
[1732335012643,0.0396,3333.1,3332.2,0.7635]
[1732335012852,0.0496,3333.1,3332.3,0.05137243]
[1732335013052,0.7644,3332.8,3332.3,0.05137243]
[1732335013216,0.794,3332.8,3332.3,0.05137243]
[1732335013423,0.794,3332.8,3331.7,0.7635]
[1732335013621,0.794,3332.8,3332.4,0.05141415]
[1732335013865,0.794,3332.8,3331.7,0.7635]
[1732335014144,0.7644,3332.4,3331.5,0.7635]
[1732335014349,0.02,3332.3,3331.0,0.7635]
[1732335014555,0.02,3332.3,3331.6,0.04800279]
[1732335014847,0.02,3332.3,3331.7,0.04806949]
[1732335015049,0.02,3332.3,3331.0,0.7635]
[1732335015249,0.02,3332.3,3331.8,0.04805902]
[1732335015410,0.02,3332.3,3331.0,0.7635]
[1732335015716,0.01,3332.1,3331.9,0.0480512]
[1732335015922,0.01,3332.1,3331.0,0.7635]
[1732335015923,0.0396,3332.1,3331.0,0.7635]
[1732335016138,0.0496,3332.1,3331.0,0.7635]
[1732335016324,0.01,3331.9,3331.1,0.04811379]
[1732335016721,0.0396,3331.9,3331.1,0.04811379]
[1732335016919,0.0296,3331.9,3331.1,0.04811379]
[1732335017516,0.0296,3331.9,3331.2,0.7658]
[1732335018051,0.0296,3331.9,3331.3,0.04814529]
[1732335019518,0.0296,3331.9,3331.4,0.7658]
[1732335019854,0.0296,3331.9,3331.5,0.04812965]
[1732335023859,0.0296,3331.9,3331.6,0.7658]
[1732335024024,0.0296,3331.9,3331.8,0.7658]
[1732335024226,0.0296,3331.9,3331.8,0.94103118]
[1732335024437,0.0296,3331.9,3331.8,0.98923717]
[1732335024865,0.0296,3331.9,3331.8,1.39669041]
[1732335025072,0.01,3333.3,3331.9,0.40745324]
[1732335025073,0.7882,3333.3,3331.9,0.40745324]
[1732335025371,0.7882,3333.3,3332.0,0.7658]
[1732335025670,0.01,3333.6,3332.2,0.7658]
[1732335025972,0.01,3333.7,3332.4,0.7658]
[1732335026329,0.01,3334.2,3332.6,0.7658]
[1732335026757,0.01,3334.2,3332.8,0.7658]
[1732335026929,0.03011367,3334.2,3332.8,0.7658]
[1732335027138,0.03011367,3334.2,3332.9,0.47375184]
[1732335027344,0.03011367,3334.2,3333.0,0.7658]
[1732335027729,0.03011367,3334.2,3333.1,1.23953259]
[1732335028051,0.03011367,3334.2,3333.3,0.7658]
[1732335028544,0.03011367,3334.2,3333.5,0.7658]
[1732335028965,0.03011367,3334.2,3333.8,0.7658]
[1732335029494,0.03011367,3334.2,3333.9,0.04789146]
[1732335030759,0.03011367,3334.2,3333.7,0.00644458]
[1732335030760,0.04011367,3334.2,3333.7,0.00644458]
[1732335030991,0.01,3334.1,3334.0,0.04774997]
[1732335031293,0.01,3334.0,3333.7,0.00644458]
[1732335031487,0.7882,3333.9,3333.7,0.00644458]
[1732335031665,0.7882,3333.9,3333.8,0.04776825]
[1732335031996,0.7882,3333.9,3333.7,0.00644458]
[1732335032302,0.02,3333.8,3333.7,0.00644458]
[1732335034098,0.0574948,3333.8,3333.7,0.00644458]
[1732335034260,0.8082,3333.8,3333.7,0.00644458]
[1732335035254,0.01,3332.7,3331.9,0.752]
[1732335035460,0.01,3332.5,3331.6,0.752]
[1732335035654,0.01,3332.4,3331.6,0.752]
[1732335035856,0.01,3332.3,3331.6,0.752]
[1732335036055,0.01,3332.2,3330.8,0.8014]
[1732335036503,0.7892,3332.1,3330.8,0.8014]
[1732335036703,0.01,3331.9,3330.8,0.8014]
[1732335036912,0.01,3331.7,3330.8,0.8014]
[1732335037196,0.01,3331.4,3330.4,0.8014]
[1732335037406,0.82931367,3331.4,3330.4,0.8014]
[1732335037971,0.01,3331.1,3330.4,0.8014]
[1732335038185,0.01,3331.1,3330.0,0.8014]
[1732335038496,0.01,3330.6,3329.2,1.22718658]
[1732335038669,0.7892,3330.5,3329.3,0.8014]
[1732335039297,0.01,3330.1,3329.3,0.8014]
[1732335039885,0.01,3330.1,3328.7,0.34731369]
[1732335040202,0.01,3329.5,3328.8,0.8014]
[1732335040412,0.7892,3329.6,3328.8,0.8014]
[1732335040703,0.01,3330.2,3328.9,0.34731369]
[1732335040907,0.01,3330.3,3329.0,0.15745003]
[1732335041122,0.01,3330.3,3329.0,0.50476372]
[1732335041563,0.01,3330.3,3329.1,0.55]
[1732335041762,0.01,3330.1,3329.1,0.55]
[1732335042405,0.01,3330.3,3329.1,0.55]
[1732335042702,0.01,3330.3,3329.2,0.8014]
[1732335042901,0.01,3330.5,3329.3,0.71987137]
[1732335043091,0.01,3330.5,3329.3,0.55]
[1732335044310,0.02,3330.5,3329.2,0.8014]
[1732335044966,0.01,3330.5,3329.2,0.8014]
[1732335045167,0.01,3330.3,3329.2,0.8014]
[1732335045385,0.01,3330.1,3329.2,0.8014]
[1732335045611,0.05220946,3330.2,3329.0,0.15745003]
[1732335045904,0.05220946,3330.2,3328.8,0.8014]
[1732335046203,0.05220946,3330.2,3329.1,0.06553728]
[1732335046505,0.05220946,3330.2,3329.2,0.06552849]
[1732335046691,0.05220946,3330.2,3328.1,0.8014]
[1732335046870,0.05220946,3330.2,3329.3,0.06551969]
[1732335047202,0.05220946,3330.2,3328.1,0.8014]
[1732335047392,0.05220946,3330.2,3329.4,0.0655109]
[1732335047566,0.05220946,3330.2,3328.1,1.14871369]
[1732335047767,0.05220946,3330.2,3329.5,0.06550211]
[1732335047977,0.7542807,3330.4,3328.1,0.8014]
[1732335047978,0.03754098,3330.1,3328.1,0.8014]
[1732335048403,0.03754098,3330.1,3328.2,0.06561646]
[1732335048703,0.7892,3330.0,3328.2,0.06561646]
[1732335048881,0.03754154,3329.9,3328.2,0.06561646]
[1732335049067,0.7892,3330.0,3328.2,0.06561646]
[1732335049273,0.7892,3330.0,3328.3,0.55]
[1732335049480,0.7892,3330.0,3328.3,0.61560766]
[1732335052303,0.7892,3330.0,3328.4,0.8014]
[1732335052612,0.7892,3330.0,3328.4,0.86728344]